Cogmind - Beta 16.1 @@@ ROGUE MODE // 2026.04.14 @ 16:57:46 Player: Krysmphoenix Result: Self-destructed Performance ------------- Evolutions (1) 500 Regions Visited (3) 600 Robots Destroyed (12) 60 Value Destroyed (350) 350 Prototype IDs (0) 0 Alien Tech Used (0) 0 Bonus (200) 200 TOTAL SCORE: 1710 Bonus ------- Pacifist 200 Cogmind --------- Core Integrity 305/400 Matter 194/300 Energy 250/250 System Corruption 0% Temperature Cool (0) Movement Treading (160) Location -9/Materials Parts ------- > --- POWER (1) -------- Ion Engine > --- PROPULSION (2) --- Light Treads > --- UTILITY (2) ------ Small Storage Unit Signal Interpreter > --- WEAPON (4) ------- Grenade Launcher > --- INVENTORY (8) ---- EM Pulse Gun Assault Rifle Shotgun Katana Peak State ------------ > --- POWER ------------ Ion Engine > --- PROPULSION ------- Light Treads Light Treads > --- UTILITY ---------- Small Storage Unit Signal Interpreter > --- WEAPON ----------- Assault Rifle Light Assault Rifle Shotgun > --- INVENTORY -------- EM Pulse Gun Grenade Launcher [Rating: 9] Favorites ----------- Power Ion Engine Engine Ion Engine Propulsion Light Treads Treads Light Treads Utility Signal Interpreter Storage Small Storage Unit Processor Signal Interpreter Weapon Light Assault Rifle Ballistic Gun Light Assault Rifle Launcher Grenade Launcher Build | -11 -10 -10 -9 ------- Run | Yrd Mat Min Mat Slots Evolved 2 | . . . 2 Power . | . . . . Propulsion . | . . . . Utility . | . . . . Weapon 2 | . . . 2 Parts Attached 10 | 5 2 . 3 Power 2 | 1 . . 1 Engine 2 | 1 . . 1 Core . | . . . . Reactor . | . . . . Propulsion 2 | 2 . . . Treads 2 | 2 . . . Leg . | . . . . Wheel . | . . . . Hover . | . . . . Flight . | . . . . Utility 2 | . 2 . . Device . | . . . . Storage 1 | . 1 . . Processor 1 | . 1 . . Hackware . | . . . . Protection . | . . . . Artifact . | . . . . Weapon 4 | 2 . . 2 Energy Gun . | . . . . Energy Cannon . | . . . . Ballistic Gun 3 | 2 . . 1 Ballistic Cannon . | . . . . Launcher 1 | . . . 1 Special Weapon . | . . . . Impact Weapon . | . . . . Slashing Weapon . | . . . . Piercing Weapon . | . . . . Special Melee Weapon . | . . . . Unidentified Prototypes . | . . . . Parts Lost 3 | . . . 3 Power 1 | . . . 1 Propulsion 1 | . . . 1 Utility . | . . . . Weapon 1 | . . . 1 Highest Loss Streak 2 | . . . 2 To Critical Strikes . | . . . . Average Backups 2 | 1 2 2 2 Power . | . . . . Propulsion . | . . . . Utility . | . . . . Weapon 2 | 1 1 2 2 Tool/Special . | . . . . Unused Backups 3 | 1 . . 2 Power 1 | 1 . . . Propulsion . | . . . . Utility . | . . . . Weapon 2 | . . . 2 Tool/Special . | . . . . Average Slot Usage (%) 85 | . 85 100 74 Engine 11 | . 14 14 8 Treads 24 | . 28 28 22 Storage 11 | . 7 14 11 Processor 11 | . 7 14 11 Ballistic Gun 22 | . 28 28 16 Launcher 2 | . . . 5 Peak Build Rating 9 | 5 7 7 9 Average Rating 6 | 3 6 7 6 On Entrance 4 | . 5 7 7 Avg Prop Armor Cover (%) . | . . . . Naked Turns . | . . . . Heaviest Build 16 | 8 13 13 16 Greatest Support 40 | 40 40 40 40 Greatest Overweight (x) . | . . . . Average Overweight (x) . | . . . . Largest Inventory Capacity 8 | 5 8 8 8 Average Capacity 7 | 5 6 8 8 Most Carried 5 | 5 4 2 5 Average Carried 2 | 2 2 2 2 Final Capacity 8 | 5 8 8 8 Final Carried 4 | 2 2 2 4 Class Distribution -------------------- 100% | Mutant Dominant Class ---------------- Mutant | -10/Materials Mutant | -10/Mines Mutant | -9/Materials Resources | -11 -10 -10 -9 ----------- Run | Yrd Mat Min Mat Matter Collected 388 | 170 . 51 167 Remotely . | . . . . Salvage Created 296 | . . . 296 Parts 11 | . . . 11 Haulers Intercepted . | . . . . Recyclers Shooed . | . . . . Parts Field Recycled . | . . . . Retrieved Matter . | . . . . Parts Self-Destructed . | . . . . Prevented . | . . . . Parts Restored . | . . . . Kills | -11 -10 -10 -9 ------- Run | Yrd Mat Min Mat Combat Hostiles Destroyed 9 | . . . 9 AOE 9 | . . . 9 Classes Destroyed 6 | . . . 6 Worker 2 | . . . 2 Recycler 1 | . . . 1 Grunt 6 | . . . 6 Brawler 1 | . . . 1 Duelist 1 | . . . 1 Sentry 1 | . . . 1 Best Kill Streak 8 | . . . 8 Combat Bots Only 5 | . . . 5 Max Kills in Single Turn 3 | . . . 3 Gunslinging . | . . . . Exploded 2 | . . . 2 Melee . | . . . . Uniques/NPCs Destroyed . | . . . . Combat | -11 -10 -10 -9 -------- Run | Yrd Mat Min Mat Hostile Shots Fired 53 | . . . 53 Missed 13 | . . . 13 Hits 40 | . . . 40 Melee 5 | . . . 5 Projectile 35 | . . . 35 Critical Strikes 2 | . . . 2 Damage Taken 649 | . . . 649 Core 95 | . . . 95 Absorbed by Shields . | . . . . Core Remaining (%) 100 | 100 . 100 . Volleys Fired 24 | 1 1 . 22 Largest 3 | 2 2 . 3 Hottest 63 | 40 40 . 63 Shots Fired 33 | 2 2 . 29 Gun 17 | 2 2 . 13 Cannon . | . . . . Launcher 16 | . . . 16 Special . | . . . . Kinetic 17 | 2 2 . 13 Thermal . | . . . . Explosive 16 | . . . 16 Electromagnetic . | . . . . Robot Hit Streak 10 | . 2 . 10 Robot Miss Streak 2 | 2 . . 2 Penetration Max . | . . . . Secondary Targets . | . . . . Shots Hit Robots 22 | . 2 . 20 Core Hits 31 | . . . 31 Critical Kills . | . . . . Critical Parts Destroyed . | . . . . Critical Strikes . | . . . . Melee Attacks . | . . . . Impact . | . . . . Slashing . | . . . . Piercing . | . . . . Sneak Attacks . | . . . . Combat Hostiles . | . . . . Follow-up Attacks . | . . . . Damage Inflicted 1044 | . 19 . 1025 Guns 127 | . 19 . 108 Cannons . | . . . . Explosions 917 | . . . 917 Melee . | . . . . Ramming . | . . . . Kinetic 127 | . 19 . 108 Thermal . | . . . . Explosive 917 | . . . 917 Electromagnetic . | . . . . Impact . | . . . . Slashing . | . . . . Piercing . | . . . . Highest Corruption . | . . . . Average Corruption . | . . . . Corruption Purged . | . . . . Corruption Blocked . | . . . . Overload Shots . | . . . . Overflow Damage 3 | . . . 3 Projectiles . | . . . . Explosions 3 | . . . 3 Melee . | . . . . Knockbacks . | . . . . Impact . | . . . . Kinetic . | . . . . Secondary . | . . . . Self-Inflicted Damage 75 | . . . 75 Shots 4 | . . . 4 Rammed . | . . . . Targets Rammed . | . . . . Kicked . | . . . . Crushed . | . . . . Highest Temperature 30 | . . . 30 Average Temperature 11 | . . . 11 Received Heat Transfer 189 | . . . 189 Siege Activations . | . . . . Martial Activations . | . . . . Shielding Activations . | . . . . Robots Disrupted . | . . . . Combat Hostiles . | . . . . Robots Corrupted . | . . . . Combat Hostiles . | . . . . Parts Fried . | . . . . Impact Corruptions . | . . . . Robots Melted . | . . . . Combat Hostiles . | . . . . Parts Melted . | . . . . Heat Transferred . | . . . . Parts Sabotaged . | . . . . Parts Stolen . | . . . . Parts Stripped . | . . . . Power Chain Reactions . | . . . . Alert | -11 -10 -10 -9 ------- Run | Yrd Mat Min Mat Maximum Alert Level 1 | . . . 1 Low Security (%) 81 | 100 100 100 61 Level 1 18 | . . . 38 Level 2 . | . . . . Level 3 . | . . . . Level 4 . | . . . . Level 5 . | . . . . High Security . | . . . . Max Security . | . . . . Peak Influence 293 | . . . 293 Initial . | . . . . Average 57 | . . . 120 Influence Increases 339 | . . . 339 Destroy 0b10 Robot/C 180 | . . . 180 Destroy 0b10 Robot/NC 15 | . . . 15 Destroy Leader 50 | . . . 50 Successful Hack 6 | . . . 6 Disable Machine 15 | . . . 15 Destroy Structure 58 | . . . 58 Lose Combat Pursuer 15 | . . . 15 Influence Decreases 110 | . . . 110 Time Decay 80 | . . . 80 Lost Part 30 | . . . 30 Squads Dispatched 2 | . . . 2 Investigation 1 | . . . 1 Extermination . | . . . . Reinforcement 1 | . . . 1 Assault . | . . . . Garrison . | . . . . Intercept . | . . . . Searches Triggered . | . . . . Construction Impeded 1 | . . . 1 Haulers Reinforced . | . . . . Active Scanning Responses . | . . . . Cargo Convoy Interrupts . | . . . . Stealth | -11 -10 -10 -9 --------- Run | Yrd Mat Min Mat Distress Signals 4 | . 1 . 3 Communications Jammed . | . . . . Distress Signals . | . . . . Times Spotted 16 | . 2 . 14 Peak Tracking Total 6 | . 3 . 6 Tactical Retreats 1 | . . . 1 Traps | -11 -10 -10 -9 ------- Run | Yrd Mat Min Mat Traps Triggered 1 | . . . 1 Indirectly . | . . . . Trap Hack Attempts . | . . . . Triggered . | . . . . Disarmed . | . . . . Reprogrammed . | . . . . Reused . | . . . . Traps Extracted . | . . . . Installed . | . . . . Triggered . | . . . . Machines | -11 -10 -10 -9 ---------- Run | Yrd Mat Min Mat Machines Disabled 1 | . . . 1 Max in Single Turn 1 | . . . 1 Machines Repaired . | . . . . Machines Dismantled . | . . . . Machines Sabotaged . | . . . . Overloaded Fab Kills . | . . . . Hacking | -11 -10 -10 -9 --------- Run | Yrd Mat Min Mat Machines Accessed 2 | . . . 2 Terminals 1 | . . . 1 Fabricators . | . . . . Repair Stations . | . . . . Recycling Units . | . . . . Scanalyzers 1 | . . . 1 Garrison Access . | . . . . Total Hacks 4 | . . . 4 Successful 2 | . . . 2 Failed 1 | . . . 1 Catastrophic 1 | . . . 1 Database Lockouts 1 | . . . 1 Manual 2 | . . . 2 Terminals 2 | . . . 2 Fabricators . | . . . . Repair Stations . | . . . . Recycling Units . | . . . . Scanalyzers 2 | . . . 2 Garrison Access . | . . . . Terminal Hacks . | . . . . Fabricator Hacks . | . . . . Repair Station Hacks . | . . . . Recycling Unit Hacks . | . . . . Scanalyzer 1 | . . . 1 Retrieve Study 1 | . . . 1 Garrison Access Hacks . | . . . . Unauthorized Hacks 1 | . . . 1 Terminals 1 | . . . 1 Botnet 1 | . . . 1 Fabricators . | . . . . Repair Stations . | . . . . Recycling Units . | . . . . Scanalyzers . | . . . . Garrison Access . | . . . . Data Cores Recovered . | . . . . Used . | . . . . Hacking Detections 1 | . . . 1 Full Trace Events . | . . . . Feedback Events . | . . . . Feedback Blocked . | . . . . Robot Schematics Acquired . | . . . . Robots Built . | . . . . Authchips . | . . . . Time . | . . . . Total Robot Build Rating . | . . . . Part Schematics Acquired . | . . . . Parts Built . | . . . . Authchips . | . . . . Time . | . . . . Total Part Build Rating . | . . . . Part Studies Acquired 1 | . . . 1 Parts Repaired . | . . . . Time . | . . . . Parts Recycled . | . . . . Recycled Matter . | . . . . Retrieved Matter . | . . . . Retrieved Components . | . . . . Parts Scanalyzed . | . . . . Part Schematics Acquired . | . . . . Parts Damaged . | . . . . Bothacking | -11 -10 -10 -9 ------------ Run | Yrd Mat Min Mat Used RIF Installer . | . . . . Robots Hacked . | . . . . Non-combat . | . . . . Combat . | . . . . Robot Hacks Applied . | . . . . Relay Couplers Released . | . . . . Fabnet Peak Effective % . | . . . . Robots Rewired . | . . . . Allies Hacked . | . . . . Hacks Repelled . | . . . . Allies | -11 -10 -10 -9 -------- Run | Yrd Mat Min Mat Total Allies . | . . . . Largest Group . | . . . . Highest-Rated Group . | . . . . Highest-Rated Ally . | . . . . Total Orders . | . . . . Ally Attacks . | . . . . Total Damage . | . . . . Kills . | . . . . Allies Corrupted . | . . . . Allies Melted . | . . . . Intel | -11 -10 -10 -9 ------- Run | Yrd Mat Min Mat Active Infowar (turns) . | . . . . Robot Analysis Total . | . . . . Derelict Logs Recovered 1 | . . 1 . Drone Launches . | . . . . Drone Recoveries . | . . . . Exploration | -11 -10 -10 -9 ------------- Run | Yrd Mat Min Mat Turns Passed 717 | 61 52 265 339 Spaces Moved 414 | 45 29 166 174 Core 24 | 24 . . . Treads 390 | 21 29 166 174 Legs . | . . . . Wheels . | . . . . Hover . | . . . . Flight . | . . . . Fastest Speed 50 | 50 160 160 160 Average Speed 153 | 101 160 160 160 Slowest Speed 160 | 160 160 160 160 Overloaded Moves . | . . . . Propulsion Burnouts . | . . . . Robots Hopped . | . . . . Potential Cave-ins . | . . . . Cave-ins Triggered . | . . . . Exploration Rate (%) 20 | 3 12 50 17 Regions Visited 3 Branch Regions 1 Pre-discovered Areas 1 | . . 1 . Known Exits Taken 2 | . 1 1 . Unknown Exits Taken 1 | 1 . . . Scrap Searched 1 | . . 1 . Spaces Dug . | . . . . Terrain Destroyed 62 | . . . 62 Melee . | . . . . Projectile . | . . . . AOE 62 | . . . 62 Terrain Rammed . | . . . . Walls Destroyed . | . . . . Machines Disabled . | . . . . Actions | -11 -10 -10 -9 --------- Run | Yrd Mat Min Mat Total 467 | 59 33 166 209 Wait 4 | . . 1 3 Move 411 | 44 28 165 174 Hop . | . . . . Pick Up 15 | 8 2 . 5 Fast Attach . | . . . . Attach 11 | 5 2 . 4 Detach 1 | . . . 1 Swap . | . . . . Drop 1 | 1 . . . Fire 24 | 1 1 . 22 Melee . | . . . . Ram . | . . . . Kick . | . . . . Crush . | . . . . Escape Stasis . | . . . . Rewire . | . . . . Trap . | . . . . Miscellaneous . | . . . . Route ------- -11/Scrapyard -10/Materials -10/Mines (discovered 2 exits: *Mat x2) -9/Materials (discovered 1 exit: [*Min]) History --------- Turn | Location | Event 8 | -11/Scrapyard | Discovered new exit (range 15) 62 | -11/Scrapyard | Entered Materials 101 | -10/Materials | Discovered new exit (range 5) 108 | -10/Materials | Identified exit to Mines 114 | -10/Materials | Entered Mines 127 | -10/Mines | Discovered new exit (range 9) 137 | -10/Mines | Identified exit to Materials 298 | -10/Mines | Discovered exit to Materials (range 16) 313 | -10/Mines | Learned Materials machine intel 316 | -10/Mines | Build established: Mutant 363 | -10/Mines | Learned location of Storage (-9) 379 | -10/Mines | Entered Materials 379 | -9/Materials | Evolved 2 slots: Weapon x2 380 | -9/Materials | Loaded intel: 44 machine locations 392 | -9/Materials | Discovered new exit (range 15) 699 | -9/Materials | Central database locked down 718 | -9/Materials | Self-destructed Last Messages --------------- 00656_ U-05 Engineer builds a Wall. 00659_ U-05 Engineer builds a Door. 00659_ U-05 Engineer lays Concrete. 00669_ U-05 Engineer builds a Wall. 00672_ Acquired 15 matter. 00674_ U-05 Engineer lays Concrete. 00675_ Acquired 4 matter. 00678_ Acquired 9 matter. 00679_ U-05 Engineer lays Concrete. 00680_ U-05 Engineer builds a Wall. 00699_ Connecting with Scanalyzer... >>Study(Lgt. Treads) Identified Lgt. Treads... Downloading performance data... Effective improvements: Penalty/2 00699_ ALERT: Central database lockdown, local access denied. 00715_ Lgt. Assault Rifle destroyed. 00717_ Lgt. Treads+ destroyed. Map ----- +----------------------------------------------------+ | | | | | | | | | | | | | | | | | | | | | | | | | | | ?????????????????????????????????????????######### | | ????????????????????????????????????????? # | | ????????????????????????????????????????? # | | ?????????????#######????????????????????# # | | ############## ###################### # | | # # | | !< + # | | # # | | ############## ###### #+####### # # | | ?????????????###+###????# # ## # # | | #????????????? !?????# # "" ## ########## | | #???????????# ???# # """ ## ########## | | #???????????# #??#@ # S" ## | | #???????????# #??# a # + | | #???????????# #??# # ## | | #???????????# #??# ##########+####### | | ????????????# #??# #????# #?# | | ????????????# !! #??# #????# #?# | | ????????????# !! #??# #????# #?# | | ????????????##########??# #????# #?# | | ????????????????????????+ +????# ### | | ????????????????????????# #????# ! ### | | ??????????????????"""???# #????# ### | | ??????????????????"Y????? #????# =# | | ??????????????????"""???? #????#######+### # | | ????????????????????????? #????????# # ##### | | ????????????????????????? #????????# # | | ????????????????????????? Y ?????????# # ##/##/### | | ?????????????????????????????????????### ## == # | | ???????????????????????????????????????# ## # | | ??????????????????"????????????????????# # " # | | ???????????????????????????????????????# ##""" # | | ???????????????????????????????????????# ##""" # | | ??""???????????????????????????????????# ## # | | ??"""??????????????????????????????????? ?######## | | ???R"??????""""??"""???????????????????? ????????? | | ??"""??????""R"??"""???????????????????? ????????? | +----------------------------------------------------+ Best States ------------- Heat Dissipation 28 Energy Generation 10 Energy Capacity 250 Matter Stores 243 Matter Capacity 300 Sight Range 16 Terrain Scan Density 10 Evasion (%) 50 Recoil Reduction 2 Item Schematics ----------------- None Robot Schematics ------------------ None Fabricated ------------ Nothing Repaired ---------- Nothing Studied --------- Lgt. Treads | -9/Materials | Hacked Alien Tech Used ----------------- None Achievements -------------- None Challenges ------------ None Game ------ Seed ExplosiveFortressClaw Manual? 0 Play Time 00:09:49 Cumulative 22.7 hours Start 2026.04.14 @ 16:50:10 End 2026.04.14 @ 16:57:46 Sessions 1 Manual Loads 0 Difficulty Rogue Special Mode None Game No. 45 Rogue 42 Adventurer 3 Explorer 0 Win Type - Total 1 Types 1/0/0/0/0/0/0/0/0/0 Lore% 23 Gallery% 22 Achievement% 23 Wizard Run 0 Options --------- Layout 1 ASCII 0 Keyboard 0 Movement Numpad Keybinds 0 Fullscreen 2 Font 24/Proggy Map View 50x35 Zoom Use 0% Tactical HUD 1 Map Filters NONE Filters NONE Steam 1 RUN: ea08b696-f04c-44b4-83d5-8af2688252c2